Workbook

Sheet MENU
E1: DIAGNÓSTICO DEL GRADO DE IMPLEMENTACIÓN DE LOS PROGRAMAS INSTITUCIONALES DE TECNOVIGILANCIA Versión 3.0:2018
F3: RESOLUCIÓN 4816 DE 2008
A12: "más que un programa es una visión integral del dispositivo médico como una tecnología fundamental para la atención con calidad y seguridad de la población usuaria"
A22: Diseñado y Desarrollado por:
A23: IQ Maria Victoria Urrea Duque
A24: IB Mukoil Ahmed Romanos Zapata
A25: Grupo de Tecnovigilancia
A26: Dirección de Dispositivos Médicos y Otras Tecnologías
A27: INVIMA
A29: Referencias
A31: INALCEC. Instituto Nacional de Consultoria en Calidad. DIAGNÓSTICO DEL SISTEMA DE GESTIÓN DE LA CALIDAD PARA DISPOSITIVOS MÉDICOS. REQUISITOS NORMA ISO13485. 2006
A34: PREMIO CALIDAD EN SALUD COLOMBIA. INSTITUCIONES PRESTADORAS DE SALUD. GUIA PARA PARTICIPANTES. CENTRO DE GESTION HOSPITALARIA. DEPARTAMENTO NACIONAL DE PLANEACIÓN
A37: DONABEDIAN, Avedis. La Calidad de la Atención Medica. Definición y Métodos de Evaluación. México : La Prensa Médica Mexicana, 1991
A40: DONABEDIAN, Avedis. Garantía de Calidad Quién es responsable? Calidad de la Atención en Salud. Volumen 3 Números 1 y 2. Junio de 1.996
A43: JOINT COMMISSION. Estándares de Acreditación de Hospitales.1996
A47: MARTINEZ, Catalina. EVALUACION DE PROGRAMAS E INSTITUCIONES ALGUNOS ENFOQUES.DEPARTAMENTO DE METODOS DE INVESTIGACION Y DIAGNOSTICO EN EDUCACION I. FACULTAD DE EDUCACION UNED. 2001

Sheet PRESENTACIÓN INSTITUCIÓN (hidden)
B3: FICHA DE PRESENTACIÓN
B4: FECHA DE LA VISITA | C4: =+TODAY() -> 2021-05-10
B5: PROFESIONAL QUE REALIZA LA VISITA | C5: Juan Galvis
B6: PROFESIÓN | C6: Bacteriologo
B7: ORGANIZACIÓN Y ÁREA A LA QUE PERTENECE | C7: IDS
B8: I. DATOS CONTACTO DEL REFERENTE DEL PROGRAMA
B9: NOMBRE REFERENTE DE TECNOVIGILANCIA
B10: PROFESIÓN
B11: CARGO
B12: ÁREA O DEPARTAMENTO AL QUE PERTENECE
B13: TELÉFONO CONTACTO
B14: CORREO ELECTRÓNICO
B15: II. DATOS DE LA INSTITUCIÓN
B16: NOMBRE DE LA INSTITUCIÓN
B17: DEPARTAMENTO
B18: CIUDAD
B19: DIRECCIÓN
B20: NIVEL DE COMPLEJIDAD
B21: SERVICIOS HABILITADOS (Escriba los de mayor complejidad)
A32: Diseñado y Desarrollado por:
A33: IQ Maria Victoria Urrea Duque
A34: IB Mukoil Ahmed Romanos Zapata
A35: Grupo de Tecnovigilancia
A36: Dirección de Dispositivos Médicos y Otras Tecnologías
A37: INVIMA

Sheet CRITERIOS DE EVALUACIÓN (hidden)
B4: CRITERIOS DE EVALUACIÓN
B8: CODIGO DESCRIPTOR | C8: DEFINICIÓN | D8: PUNTAJE ASIGNADO | E8: PUNTAJE ASIGNADO | F8: PUNTAJE ASIGNADO | G8: PUNTAJE ASIGNADO
B9: No hay nada | C9: No se ha establecido ninguna disposición | D9: 0 | E9: 0 | F9: 0 | G9: 0
B10: Documentado | C10: Se refiere a que el requisito a evaluar cuenta con un procedimiento o método definido, actualizado, aprobado y disponible el cual se ha socializado a todo el personal de la Institución. | D10: 0.25 | E10: =+E12/3 -> 0.3333333333 | F10: 0.5 | G10: 1
B11: Implementado | C11: Evidencia que las disposiciones establecidas en el procedimiento o método para el cumplimiento del requisito, se están aplicando dentro de la Institución. | D11: 0.5 | E11: =+(E12/3)*2 -> 0.6666666667 | F11: 1
B12: Resultado | C12: Se refiere a los logros y efectos de la aplicación de los procedimientos o métodos establecidos para el cumplimiento del requisito. | D12: 0.75 | E12: 1
B13: Mejorado | C13: Evidencia que hay madurez en la aplicación de las disposiciones que se evalúan y mejoran continuamente. | D13: 1
A15: Diseñado y Desarrollado por:
A16: IQ Maria Victoria Urrea Duque
A17: IB Mukoil Ahmed Romanos Zapata
A18: Grupo de Tecnovigilancia
A19: Dirección de Dispositivos Médicos y Otras Tecnologías
A20: INVIMA

Sheet REQUISITOS A EVALUAR (hidden)
C4: Volver a Menú
B5: PROGRAMA NACIONAL DE TECNOVIGILANCIA. Resolución 4816 de 2008 Ministerio de Salud y Protección Social
B6: =+'PRESENTACIÓN INSTITUCIÓN'!C16 -> 0
B8: No | C8: Requisitos Resolución 4816 de 2008 | D8: Aspecto a evaluar | E8: Evidencia | F8: Criterio de Evaluación | G8: Resultado | H8: OBSERVACIONES | I8: Puntaje | J8: Cálculo
B9: I. RESPONSABLE DEL PROGRAMA INSTITUCIONAL DE TECNOVIGILANCIA | I9: 10 | J9: =+I9*AVERAGE(G10:G11) -> 2.5 | K9: =+J9/I9 -> 0.25
B10: 1 | C10: Articulo 9°. Numeral 2. Literal d, i Articulo 11° | D10: La Institución ha designado como mínimo un profesional competente en el tema, responsable del Programa Institucional de Tecnovigilancia y ha comunicado al INVIMA la información de contacto para figurar como referente ante dicho Instituto. Los profesionales de la institución envian sus reportes al responsable del Programa de Tecnovigilancia en la institución. | E10: Registro del nombramiento o designación como referente del programa institucional de tecnovigilancia, Constancia de inscripción a la red expedida por el INVIMA. (Por la Red Nacional de Tecnovigilancia o Aplicativo Web cuenta con usuario y clave). El personal de Ia Institución reconoce al referente del Programa. | F10: No hay nada | G10: =+VLOOKUP(F10,'REQUISITOS A EVALUAR'!$C$62:$F$65,4,0) -> 0 | J10: 4
B11: 2 | C11: Articulo 12° | D11: La Institución ha capacitado al responsable en el conocimiento de las obligaciones específicas del Programa y en la interpretación y aplicación adecuada de la normatividad relacionada Tecnovigilancia en el país. (Decreto 4725 de 2005, Resolución 4816 de 2008, Resolución 2003 de 2014) | E11: Registro de inducción, capacitación en materia de tecnovigilancia, manual de funciones del responsable. | F11: Documentado | G11: =+VLOOKUP(F11,'REQUISITOS A EVALUAR'!$C$62:$G$64,5,0) -> 0.5 | J11: 3
B12: II. DOCUMENTACION DEL PROGRAMA | I12: 15 | J12: =+I12*AVERAGE(G13:G15) -> 8.75 | K12: =+J12/I12 -> 0.5833333333
B13: 3 | C13: Articulo 10° Numeral 4 | D13: La institución ha documentado el manual o procedimiento de Tecnovigilancia, donde define el tipo de dispositivos médicos objeto de vigilancia, elementos conceptuales de los eventos e incidentes adversos, estrategia de vigilancia y recolección de reportes, análisis y valoración de los resultados, reporte al fabricante y autoridad sanitaria. Documenta mediante procedimientos, las funciones y actividades que lleva a cabo en materia de Tecnovigilancia y estan aprobados por el responsable de Tecnovigilancia y la Dirección de la institución. | E13: Manual o procedimiento de Tecnovigilancia. Identificar Codigo del documento, ultima fecha de actualizacion y versión | F13: Documentado | G13: =+VLOOKUP(F13,'REQUISITOS A EVALUAR'!$C$62:$E$66,3,0) -> 0.25 | J13: 5
B14: 4 | C14: Articulo 14° Articulo 17° numeral 1,2,3,4,5 | D14: Cuenta con un formato de notificación institucional para el reporte de eventos e incidentes adversos que contenga como minimo: 1. Identificación del paciente incluyendo género o edad. 2. Identificación del dispositivo médico: número de lote o serie, modelo, referencia, registro sanitario, marca. 3.Gestión realizada, identificacion de la causa probable, acciones correctivas realizadas. 4. Identificación del reportante: profesión, area de trabajo y datos de contacto. | E14: Formato de reporte de eventos e incidentes adversos de la Institución. Logo, Identificar Código del documento, última fecha de actualización y versión. Verificar si los campos permiten el adecuado diligenciamiento por parte del personal. | F14: Implementado | G14: =+VLOOKUP(F14,'REQUISITOS A EVALUAR'!$C$62:$E$66,3,0) -> 0.5 | J14: 5
B15: 5 | C15: Articulo 10° Numeral 3 | D15: Cuenta con un sistema de administración y gestión de datos | E15: Verificar la integridad, la exactitud, la fiabilidad, la consistencia, la confidencialidad de la información relacionada con los eventos e incidentes adversos que se han presentado en la Institución. (Excel, Access, Software Propio en Intranet) | F15: Mejorado | G15: =+VLOOKUP(F15,'REQUISITOS A EVALUAR'!$C$62:$E$66,3,0) -> 1 | J15: 5
B16: III. CAPACITACIÓN Y FORMACIÓN DEL PERSONAL | I16: 5 | J16: =+I16*AVERAGE(G17:G19) -> 4.583333333 | K16: =+J16/I16 -> 0.9166666667
B17: 6 | C17: Articulo 12° Numeral 3 | D17: El responsable del PITV, orienta a los informantes en el correcto diligenciamiento del formato de reporte. | E17: Registro de capacitación al personal y revisión de un formato de reporte diligenciado. | F17: Resultado | G17: =+VLOOKUP(F17,'REQUISITOS A EVALUAR'!$C$62:$E$66,3,0) -> 0.75 | J17: 3
B18: 7 | C18: Articulo 9°. Numeral 3. Literal b. | D18: Informa, divulga y aplica prácticas adecuadas de utilización de dispositivos médicos. | E18: Registro de capacitación sobre el uso de Dispositivos Médicos al igual que de Equipos Biomédicos al personal de la Institución Hospitalaria y resultado de evaluaciones. | F18: Mejorado | G18: =+VLOOKUP(F18,'REQUISITOS A EVALUAR'!$C$62:$E$66,3,0) -> 1 | J18: 4
B19: 8 | C19: Articulo 9°. Numeral 3. Literal h. | D19: La Institución genera actividades de promoción y formación a los profesionales de la salud y personal asistencial, en relación al desarrollo e implementación del Programa Nacional de Tecnovigilancia y la gestión de eventos o incidentes adversos con dispositivos médicos. | E19: Plan de capacitaciones. Identificar si en la inducción del personal se incluye temas relacionados con Tecnovigilancia y efectua las evaluaciones al personal | F19: Mejorado | G19: =+VLOOKUP(F19,'REQUISITOS A EVALUAR'!$C$62:$E$66,3,0) -> 1 | J19: 4
B20: IV. GESTION DE EVENTOS E INCIDENTES ADVERSOS | I20: 40 | J20: =+I20*AVERAGE(G21:G26) -> 18.33333333 | K20: =+J20/I20 -> 0.4583333333
B21: 9 | C21: Articulo 12° Articulo 9°. Numeral 3. Literal e. | D21: El responsable del PITV, realiza la identificación, análisis, toma de acciones preventivas o correctivas y comunicación de los eventos e incidentes adversos a nivel interno | E21: Verificar si está documentado en el Manual de Tecnovigialncia. Como se hace la evaluación.Registro de aplicación metodologias para el análisis de causas de los eventos e incidentes adversos. (lluvia de ideas, 5 por qué, causa efecto o espina de pescado, Protocolo de Londres, sistemas de Gestión del Riesgo) Evidencia Actas de Comité, verificar fecha y los casos evaluados, la periodicidad de los comites y la ejecución del plan de acción. | F21: Resultado | G21: =+VLOOKUP(F21,'REQUISITOS A EVALUAR'!$C$62:$E$66,3,0) -> 0.75 | J21: 5
B22: 10 | C22: Articulo 22° Numeral 2 | D22: El responsable utiliza la norma NTC5736:2009 “Dispositivos Médicos. Estructura de codificación para tipos de eventos adversos y sus causas” para identificar la causa probable del evento. | E22: Registro del analisis de causas. Indicar que esta clasificación se ubican en el formulario FOREIA001 " Formato de reportes de eventos e incidentes adversos asociados al uso del dispositivo médico" de la plataforma web | F22: Mejorado | G22: =+VLOOKUP(F22,'REQUISITOS A EVALUAR'!$C$62:$E$66,3,0) -> 1 | J22: 3
B23: 11 | C23: Articulo 14° | D23: El responsable, una vez gestiona los EIA, realiza la notificación en los formatos de reporte de eventos e incidentes serios y no serios establecidos por el INVIMA | E23: Formatos de reporte INVIMA (FOREIA001 Y RETEIM-002), completamente diligenciados. Enfatizar en que a partir del 01/07/2018 el reporte de eventos e incidentes adversos serios y no serios ahora se notifian por la plataforma virtual de Tecnovigilancia. Direccionar en Pagina web la ubicación: https://farmacoweb.invima.gov.co/TecnoVigilancia/faces/pages/reporteMasivoTrimestral.xhtml La información de seguimiento de los casos se notifica al correo electrónico tecnovigilancia@invima.gov.co. | F23: No hay nada | G23: =+VLOOKUP(F23,'REQUISITOS A EVALUAR'!$C$62:$E$66,3,0) -> 0 | J23: 3
B24: 12 | C24: Articulo 9°. Numeral 2. Literal f. | D24: El responsable realiza la notificación de los EIA al proveedor o distribuidor del dispositivo médico involucrado. | E24: Verificar notificación al proveedor. Enfatizar en el envío directo a la empresa asociada al registro sanitario. | F24: No hay nada | G24: =+VLOOKUP(F24,'REQUISITOS A EVALUAR'!$C$62:$E$66,3,0) -> 0 | J24: 3
B25: 13 | C25: Articulo 15° | D25: El responsable realiza la notificación de los EIA Serios al INVIMA en los tiempos establecidos | E25: Verificar último correo electrónico notificado por el aplicativo de la plataforma Web del Invima, en el que se evidencie 1. Código asigando (COL18XXXXXX) 2. Fecha de Notificación | F25: No hay nada | G25: =+VLOOKUP(F25,'REQUISITOS A EVALUAR'!$C$62:$E$66,3,0) -> 0 | J25: 4
B26: 14 | C26: Articulo 16° | D26: El responsable realiza la notificación de los EIA No Serios a la plataforma virtual de Tecnovigilancia en los tiempos establecidos | E26: Verificar último correo electrónico notificado por el aplicativo de la plataforma Web del Invima, en el que se evidencie 1. Código asigando (PRECOL18XXXXXX) 2. Fecha de Notificación de cargue masivo trimestral | F26: Mejorado | G26: =+VLOOKUP(F26,'REQUISITOS A EVALUAR'!$C$62:$E$66,3,0) -> 1 | J26: 4
B27: V. ANÁLISIS ESTADÍSTICOS | I27: 10 | J27: =+I27*AVERAGE(G28:G29) -> 5 | K27: =+J27/I27 -> 0.5
B28: 15 | C28: Articulo 10° Numeral 3 | D28: El sistema de administración y gestión de datos, permite el seguimiento en el tiempo del comportamiento de los problemas de seguridad relacionados con los dispositivos médicos. | E28: Informes estadisticos de la institucion, identificar indicadores, fecha del último informe y acciones emprendidas | F28: Mejorado | G28: =+VLOOKUP(F28,'REQUISITOS A EVALUAR'!$C$62:$E$66,3,0) -> 1 | J28: 5
B29: 16 | C29: Articulo 1° | D29: La Institucion trabaja de manera articulada con el Programa de Seguridad del Paciente. | E29: Documento que presente la interacción del Programa de Tecnovigilancia con la Politica de Seguridad del paciente. Indicadores asociados a Dispositivos Médicos en el Programa de Seguridad del Paciente | F29: No hay nada | G29: =+VLOOKUP(F29,'REQUISITOS A EVALUAR'!$C$62:$E$66,3,0) -> 0 | J29: 5
B30: VI. ARTICULACIÓN CON EL AREA DE MANTENIMIENTO DE EQUIPOS MEDICOS | I30: 10 | J30: =+I30*AVERAGE(G31:G32) -> 10 | K30: =+J30/I30 -> 1
B31: 17 | C31: Decreto 4725 de 2005. Articulo 39° | D31: El recurso humano que realiza mantenimiento y verificación de la calibración de equipos biomédicos de Clases IIb y III, tiene como responsable un profesional en ingeniería biomédica o ingenierías afines o personal técnico debidamente acreditado y registrado ante el Invima. | E31: Carta de constancia emitido por el INVIMA | F31: Documentado | G31: =+VLOOKUP(F31,'REQUISITOS A EVALUAR'!$C$62:$H$63,6,0) -> 1 | J31: 2
B32: 18 | C32: Resolución 2003 de 2014. Anexo Técnico. Numeral 2.3.2 Estándares y Criterios de habilitación por Servicio. 2.3.2.1 Todos los servicios Estándar Dotación | D32: La institución realiza el mantenimiento de los equipos biomédicos eléctricos o mecánicos, con sujeción a un programa de revisiones periódicas de carácter preventivo y calibración de equipos, cumpliendo con los requisitos e indicaciones dadas por los fabricantes y con los controles de calidad, de uso corriente en los equipos que aplique. Lo anterior está consignado en la hoja de vida del equipo, con el mantenimiento correctivo. | E32: * Revisión del Inventario de Equipos biomédicos * Cronograma de mantenimiento preventivo * Hoja de vida. * Registros o reportes del mantenimiento (fecha del registro vs la fecha establecida en el cronograma) * Registro de la verificación de la calibración | F32: Mejorado | G32: =+VLOOKUP(F32,'REQUISITOS A EVALUAR'!$C$62:$E$66,3,0) -> 1 | J32: 5
B33: VII. GESTION DE RISARH POR PARTE DE LA INSTITUCION | I33: 5 | J33: =+I33*G34 -> 3.75 | K33: =+J33/I33 -> 0.75
B34: 19 | C34: Resolución 2003 de 2014. Anexo Técnico. Numeral 2.3.2 Estándares y Criterios de habilitación por Servicio. 2.3.2.1 Todos los servicios. Medicamentos, Dispositivos Médicos e Insumos | D34: El responsable del PITV verifica de las Alertas emitidas por el INVIMA | E34: Documenta esta gestión de monitoreo de las alertas, divulga la informacion al personal de la Institución. | F34: Resultado | G34: =+VLOOKUP(F34,'REQUISITOS A EVALUAR'!$C$62:$E$66,3,0) -> 0.75 | J34: 5
B35: VIII. TRAZABILIDAD DM IMPLANTABLES * | I35: 5 | J35: =+I35*G36 -> 0 | K35: =+J35/I35 -> 0
B36: 20* | C36: Artículo 31. Res. 4816 de 2008 Articulo 63. Decreto 4725 de 2005 | D36: La Institución ha determinado mecanismos para identificar la trazabilidad dispositivos médicos implantablesde manera fácil y oportuna, para identificar aquellos involucrados en informaciones de seguridad y poder emprender las acciones que sean del caso. La ficha de implante cuenta con los siguientes datos: la fecha de implante, código del dispositivo médico, nombre del implante, identificación, nombre del fabricante, denominación común, denominación comercial, referencias, número de lote, número de dispositivo médico, número de identificación del paciente, número de seguro, código del sitio de almacenamiento y número de la unidad funcional que realiza el implante y esta se encuentra en la historia clínica del paciente. | E36: Documento o procedimiento sobre trazabilidad para los dispositivos médicos implantables (o incluido en el manual de tecnovigilancia). Verificacion de la ficha de implante y revisión de historia clinica que aplique con está información. | F36: No aplica | G36: =+VLOOKUP(F36,'REQUISITOS A EVALUAR'!$C$62:$E$67,3,0) -> 0
C37: * Si la Institución Hospitalaria no utiliza dispositivos médicos implantables en la prestación de servicios de salud, marque la opción no aplica
E39: TOTAL REQUISITOS EVALUADOS | F39: =+COUNT(G36,G34,G31:G32,G28:G29,G23:G26,G21:G22,G17:G19,G13:G15,G10:G11) -> 20
E40: TOTAL REQUISITOS " No hay nada" | F40: =+COUNTIFS(F10:F36,"No hay nada") -> 5
E41: TOTAL REQUISITOS "Documentado" | F41: =+COUNTIFS(F10:F36,"Documentado") -> 3
E42: TOTAL REQUISITOS "Implementado" | F42: =+COUNTIFS(F10:F36,"Implementado") -> 1
E43: TOTAL REQUISITOS "Resultado" | F43: =+COUNTIFS(F10:F36,"Resultado") -> 3
E44: TOTAL REQUISITOS "Mejorado" | F44: =+COUNTIFS(F10:F36,"Mejorado") -> 7
E45: TOTAL REQUISITOS "No aplica" | F45: =+COUNTIFS(F11:F36,"No aplica") -> 1 | J45: =+F46+G45 -> 52.91666667
E46: PUNTAJE OBTENIDO | F46: =+J33+J30+J27+J20+J16+J9+J12+J35 -> 52.91666667
E47: PUNTAJE ESPERADO | F47: =+I33+I30+I27+I20+I16+I12+I9+I35 -> 100
D48: ¡Gracias por su compromiso con la Tecnovigilancia en Colombia!
D49: EL FORMATO IMPRESO DE ESTE DOCUMENTO ES UNA COPIA NO CONTROLADA
B50: Diseñado y Desarrollado por: | J50: F43-PM02-IVC V4 30/05/2013
B51: IQ Maria Victoria Urrea Duque
B52: IB Mukoil Ahmed Romanos Zapata
B53: Grupo de Tecnovigilancia
B54: Dirección de Dispositivos Médicos y Otras Tecnologías
B55: INVIMA
C61: CODIGO DESCRIPTOR | D61: DEFINICIÓN | E61: PUNTAJE ASIGNADO | F61: PUNTAJE ASIGNADO | G61: PUNTAJE ASIGNADO | H61: PUNTAJE ASIGNADO
C62: No hay nada | D62: No se ha establecido ninguna disposición | E62: 0 | F62: 0 | G62: 0 | H62: 0
C63: Documentado | D63: Se refiere a que el requisito a evaluar cuenta con un procedimiento o método definido, actualizado, aprobado y disponible el cual se ha socializado a todo el personal de la Institución. | E63: 0.25 | F63: =+F65/3 -> 0.3333333333 | G63: 0.5 | H63: 1
C64: Implementado | D64: Evidencia que las disposiciones establecidas en el procedimiento o método para el cumplimiento del requisito, se están aplicando dentro de la Institución. | E64: 0.5 | F64: =+(F65/3)*2 -> 0.6666666667 | G64: 1
C65: Resultado | D65: Se refiere a los logros y efectos de la aplicación de los procedimientos o métodos establecidos para el cumplimiento del requisito. | E65: 0.75 | F65: 1
C66: Mejorado | D66: Evidencia que hay madurez en la aplicación de las disposiciones que se evalúan y mejoran continuamente. | E66: 1
C67: No aplica | D67: La Institución no le aplica el requisitos de acuerdo con su Prestación de Servicios | E67: 0

Sheet RESULTADOS EN RED (hidden)
A2: DIAGNÓSTICO DEL GRADO DE IMPLEMENTACIÓN DEL PROGRAMA NACIONAL DE TECNOVIGILANCIA RESOLUCION 4816 DE 2008
D3: =+'PRESENTACIÓN INSTITUCIÓN'!C16 -> 0
J8: EJES DE GESTIÓN | K8: Puntaje Obtenido | L8: % Puntaje Esperado
J9: I. RESPONSABLE | K9: =+'REQUISITOS A EVALUAR'!J9 -> 2.5 | L9: =+'REQUISITOS A EVALUAR'!K9 -> 0.25
J10: II. DOCUMENTACIÓN | K10: =+'REQUISITOS A EVALUAR'!J12 -> 8.75 | L10: =+'REQUISITOS A EVALUAR'!K12 -> 0.5833333333
J11: III. CAPACITACIÓN Y FORMACIÓN DEL PERSONAL | K11: =+'REQUISITOS A EVALUAR'!J16 -> 4.583333333 | L11: =+'REQUISITOS A EVALUAR'!K16 -> 0.9166666667
J12: IV. GESTIÓN DE EVENTOS E INCIDENTES ADVERSOS | K12: =+'REQUISITOS A EVALUAR'!J20 -> 18.33333333 | L12: =+'REQUISITOS A EVALUAR'!K20 -> 0.4583333333
J13: V. ANÁLISIS ESTADÍSTICOS | K13: =+'REQUISITOS A EVALUAR'!J27 -> 5 | L13: =+'REQUISITOS A EVALUAR'!K27 -> 0.5
J14: VI. MANTENIMIENTO DE EQUIPOS MEDICOS | K14: =+'REQUISITOS A EVALUAR'!J30 -> 10 | L14: =+'REQUISITOS A EVALUAR'!K30 -> 1
J15: VII. GESTIÓN DE ALERTAS | K15: =+'REQUISITOS A EVALUAR'!J33 -> 3.75 | L15: =+'REQUISITOS A EVALUAR'!K33 -> 0.75
J16: VIII. TRAZABILIDAD DM IMPLANTABLES | K16: =+'REQUISITOS A EVALUAR'!J35 -> 0 | L16: =+'REQUISITOS A EVALUAR'!K35 -> 0
J18: PUNTAJE OBTENIDO DE 100 ESPERADOS | K18: =+SUM(K9:K16) -> 52.91666667
J20: % GRADO DE IMPLEMENTACIÓN DEL PROGRAMA | K20: =+IF('REQUISITOS A EVALUAR'!F36="No aplica",AVERAGE(L9:L15),AVERAGE(L9:L16)) -> 0.6369047619 | L20: =+IF(K20>81%,"ALTO",IF(K20<50%,"BAJO","MEDIO")) -> MEDIO
J22: Criterio Grado de Implementación | K22: NIVEL
J23: 0 - 50 % | K23: BAJO
J24: 51 - 80 % | K24: MEDIO
J25: 81 - 100 % | K25: ALTO
A38: Diseñado y Desarrollado por:
A39: IQ Maria Victoria Urrea Duque
A40: IB Mukoil Ahmed Romanos Zapata
A41: Grupo de Tecnovigilancia
A42: Dirección de Dispositivos Médicos y Otras Tecnologías
A43: INVIMA

Sheet TABLA DE CALIFICACIÓN RESUMIDA (hidden)
G2: TABLA DE RESULTADOS RESUMIDOS DEL DIAGNÓSTICO DEL GRADO DE
G3: IMPLEMENTACIÓN DEL PROGRAMA INSTITUCIONAL DE TECNOVIGILANCIA
G4: RESOLUCION 4816 DE 2008
B7: =+'PRESENTACIÓN INSTITUCIÓN'!C16 -> 0
B9: No | C9: Eje de Gestión | D9: Requisitos Resolución 4816 de 2008 | E9: Aspecto a Evaluar Resumido | F9: Criterio de Evaluación | G9: Calificación del Criterio % | H9: Puntaje Esperado | I9: Puntaje Obtenido
B10: 1 | C10: I. RESPONSABLE DEL PROGRAMA INSTITUCIONAL DE TECNOVIGILANCIA | D10: =+'REQUISITOS A EVALUAR'!C10 -> Articulo 9°. Numeral 2. Literal d, i Articulo 11° | E10: Inscripción del Responsable | F10: =+'REQUISITOS A EVALUAR'!F10 -> No hay nada | G10: =+'REQUISITOS A EVALUAR'!G10 -> 0 | H10: =+'REQUISITOS A EVALUAR'!I9 -> 10 | I10: =+'REQUISITOS A EVALUAR'!J9 -> 2.5
B11: 2 | D11: =+'REQUISITOS A EVALUAR'!C11 -> Articulo 12° | E11: Capacitación al responsable | F11: =+'REQUISITOS A EVALUAR'!F11 -> Documentado | G11: =+'REQUISITOS A EVALUAR'!G11 -> 0.5
B12: 3 | C12: II. DOCUMENTACION DEL PROGRAMA | D12: =+'REQUISITOS A EVALUAR'!C13 -> Articulo 10° Numeral 4 | E12: Manual de Tecnovigilancia | F12: =+'REQUISITOS A EVALUAR'!F13 -> Documentado | G12: =+'REQUISITOS A EVALUAR'!G13 -> 0.25 | H12: =+'REQUISITOS A EVALUAR'!I12 -> 15 | I12: =+'REQUISITOS A EVALUAR'!J12 -> 8.75
B13: 4 | D13: =+'REQUISITOS A EVALUAR'!C14 -> Articulo 14° Articulo 17° numeral 1,2,3,4,5 | E13: Formato de reporte | F13: =+'REQUISITOS A EVALUAR'!F14 -> Implementado | G13: =+'REQUISITOS A EVALUAR'!G14 -> 0.5
B14: 5 | D14: =+'REQUISITOS A EVALUAR'!C15 -> Articulo 10° Numeral 3 | E14: Sistema de administración y gestión de datos | F14: =+'REQUISITOS A EVALUAR'!F15 -> Mejorado | G14: =+'REQUISITOS A EVALUAR'!G15 -> 1
B15: 6 | C15: III. CAPACITACIÓN Y FORMACIÓN DEL PERSONAL | D15: =+'REQUISITOS A EVALUAR'!C17 -> Articulo 12° Numeral 3 | E15: Diligenciamiento del formato de reporte. | F15: =+'REQUISITOS A EVALUAR'!F17 -> Resultado | G15: =+'REQUISITOS A EVALUAR'!G17 -> 0.75 | H15: =+'REQUISITOS A EVALUAR'!I16 -> 5 | I15: =+'REQUISITOS A EVALUAR'!J16 -> 4.583333333
B16: 7 | D16: =+'REQUISITOS A EVALUAR'!C18 -> Articulo 9°. Numeral 3. Literal b. | E16: Aplica prácticas adecuadas uso DM | F16: =+'REQUISITOS A EVALUAR'!F18 -> Mejorado | G16: =+'REQUISITOS A EVALUAR'!G18 -> 1
B17: 8 | D17: =+'REQUISITOS A EVALUAR'!C19 -> Articulo 9°. Numeral 3. Literal h. | E17: Plan de capacitaciones | F17: =+'REQUISITOS A EVALUAR'!F19 -> Mejorado | G17: =+'REQUISITOS A EVALUAR'!G19 -> 1
B18: 9 | C18: IV. GESTION DE EVENTOS E INCIDENTES ADVERSOS | D18: =+'REQUISITOS A EVALUAR'!C21 -> Articulo 12° Articulo 9°. Numeral 3. Literal e. | E18: Gestión EIA a nivel interno. | F18: =+'REQUISITOS A EVALUAR'!F21 -> Resultado | G18: =+'REQUISITOS A EVALUAR'!G21 -> 0.75 | H18: =+'REQUISITOS A EVALUAR'!I20 -> 40 | I18: =+'REQUISITOS A EVALUAR'!J20 -> 18.33333333
B19: 10 | D19: =+'REQUISITOS A EVALUAR'!C22 -> Articulo 22° Numeral 2 | E19: Norma NTC5736:2009 causa EIA | F19: =+'REQUISITOS A EVALUAR'!F22 -> Mejorado | G19: =+'REQUISITOS A EVALUAR'!G22 -> 1
B20: 12 | D20: =+'REQUISITOS A EVALUAR'!C23 -> Articulo 14° | E20: Notificación en los formatos INVIMA | F20: =+'REQUISITOS A EVALUAR'!F23 -> No hay nada | G20: =+'REQUISITOS A EVALUAR'!G23 -> 0
B21: 13 | D21: =+'REQUISITOS A EVALUAR'!C24 -> Articulo 9°. Numeral 2. Literal f. | E21: Notificación al proveedor | F21: =+'REQUISITOS A EVALUAR'!F24 -> No hay nada | G21: =+'REQUISITOS A EVALUAR'!G24 -> 0
B22: 14 | D22: =+'REQUISITOS A EVALUAR'!C25 -> Articulo 15° | E22: Notificación en tiempo al INVIMA | F22: =+'REQUISITOS A EVALUAR'!F25 -> No hay nada | G22: =+'REQUISITOS A EVALUAR'!G25 -> 0
B23: 15 | D23: =+'REQUISITOS A EVALUAR'!C26 -> Articulo 16° | E23: Notificación en tiempo a SDS | F23: =+'REQUISITOS A EVALUAR'!F26 -> Mejorado | G23: =+'REQUISITOS A EVALUAR'!G26 -> 1
B24: 16 | C24: V. ANÁLISIS ESTADÍSTICOS | D24: =+'REQUISITOS A EVALUAR'!C28 -> Articulo 10° Numeral 3 | E24: Análisis estadisticos | F24: =+'REQUISITOS A EVALUAR'!F28 -> Mejorado | G24: =+'REQUISITOS A EVALUAR'!G28 -> 1 | H24: =+'REQUISITOS A EVALUAR'!I27 -> 10 | I24: =+'REQUISITOS A EVALUAR'!J27 -> 5
B25: 17 | D25: =+'REQUISITOS A EVALUAR'!C29 -> Articulo 1° | E25: Interacción Seguridad del Paciente | F25: =+'REQUISITOS A EVALUAR'!F29 -> No hay nada | G25: =+'REQUISITOS A EVALUAR'!G29 -> 0
B26: 18 | C26: VI. ARTICULACIÓN CON EL AREA DE MANTENIMIENTO DE EQUIPOS MEDICOS | D26: =+'REQUISITOS A EVALUAR'!C31 -> Decreto 4725 de 2005. Articulo 39° | E26: Inscripción RH Mantenimiento EBC | F26: =+'REQUISITOS A EVALUAR'!F31 -> Documentado | G26: =+'REQUISITOS A EVALUAR'!G31 -> 1 | H26: =+'REQUISITOS A EVALUAR'!I30 -> 10 | I26: =+'REQUISITOS A EVALUAR'!J30 -> 10
B27: 19 | D27: =+'REQUISITOS A EVALUAR'!C32 -> Resolución 2003 de 2014. Anexo Técnico. Numeral 2.3.2 Estándares y Criterios de habilitación por Servicio. 2.3.2.1 Todos los servicios Estándar Dotación | E27: Mantenimiento EBC | F27: =+'REQUISITOS A EVALUAR'!F32 -> Mejorado | G27: =+'REQUISITOS A EVALUAR'!G32 -> 1
B28: 20 | C28: VII. GESTION DE RISARH POR PARTE DE LA INSTITUCION | D28: =+'REQUISITOS A EVALUAR'!C34 -> Resolución 2003 de 2014. Anexo Técnico. Numeral 2.3.2 Estándares y Criterios de habilitación por Servicio. 2.3.2.1 Todos los servicios. Medicamentos, Dispositivos Médicos e Insumos | E28: Gestión de alertas | F28: =+'REQUISITOS A EVALUAR'!F34 -> Resultado | G28: =+'REQUISITOS A EVALUAR'!G34 -> 0.75 | H28: =+'REQUISITOS A EVALUAR'!I33 -> 5 | I28: =+'REQUISITOS A EVALUAR'!J33 -> 3.75
B29: 21 | C29: VIII. TRAZABILIDAD DM IMPLANTABLES | D29: =+'REQUISITOS A EVALUAR'!C36 -> Artículo 31. Res. 4816 de 2008 Articulo 63. Decreto 4725 de 2005 | E29: Trazabilidad DM implantables | F29: =+'REQUISITOS A EVALUAR'!F36 -> No aplica | G29: =+'REQUISITOS A EVALUAR'!G36 -> 0 | H29: =+'REQUISITOS A EVALUAR'!I35 -> 5 | I29: =+'REQUISITOS A EVALUAR'!J35 -> 0
H30: =+SUM(H10:H29) -> 100 | I30: =+SUM(I10:I29) -> 52.91666667
B33: Diseñado y Desarrollado por: | I33: F43-PM02-IVC V4 30/05/2013
B34: IQ Maria Victoria Urrea Duque
B35: IB Mukoil Ahmed Romanos Zapata
B36: Grupo de Tecnovigilancia
B37: Dirección de Dispositivos Médicos y Otras Tecnologías
B38: INVIMA

Sheet PERFIL RESUMIDO
C2: =+'PRESENTACIÓN INSTITUCIÓN'!C16 -> 0
S7: ALTO
S10: MEDIO
S15: BAJO
A51: Diseñado y Desarrollado por:
A52: IQ Maria Victoria Urrea Duque
A53: IB Mukoil Ahmed Romanos Zapata
A54: Grupo de Tecnovigilancia
A55: Dirección de Dispositivos Médicos y Otras Tecnologías
A56: INVIMA

Sheet CONSOLIDADO (hidden)
B3: CONSOLIDADO DEL GRADO DE IMPLEMENTACIÓN DE LOS PROGRAMAS INSTITUCIONALES DE TECNOVIGILANCIA DE LOS PRESTADORES DE SERVICIOS DE SALUD
A6: FECHA DE LA VISITA | B6: PROFESIONAL QUE REALIZA LA VISITA | C6: PROFESIÓN | D6: ORGANIZACIÓN Y ÁREA A LA QUE PERTENECE | E6: NOMBRE REFERENTE DE TECNOVIGILANCIA | F6: PROFESIÓN | G6: CARGO | H6: ÁREA O DEPARTAMENTO AL QUE PERTENECE | I6: TELÉFONO CONTACTO | J6: CORREO ELECTRÓNICO | K6: NOMBRE DE LA INSTITUCIÓN | L6: DEPARTAMENTO | M6: CIUDAD | N6: DIRECCIÓN | O6: NIVEL DE COMPLEJIDAD | P6: Inscripción del Responsable | Q6: Capacitación al responsable | R6: Manual de Tecnovigilancia | S6: Formato de reporte | T6: Sistema de administración y gestión de datos | U6: Diligenciamiento del formato de reporte. | V6: Aplica prácticas adecuadas uso DM | W6: Plan de capacitaciones | X6: Gestión EIA a nivel interno. | Y6: Norma NTC5736:2009 causa EIA | Z6: Notificación en los formatos INVIMA | AA6: Notificación al proveedor | AB6: Notificación en tiempo al INVIMA | AC6: Notificación en tiempo a SDS | AD6: Análisis estadisticos | AE6: Interacción Seguridad del Paciente | AF6: Inscripción RH Mantenimiento EBC | AG6: Mantenimiento EBC | AH6: Gestión de alertas | AI6: Trazabilidad DM implantables | AJ6: PUNTAJE OBTENIDO DE 100 ESPERADOS | AK6: % GRADO DE IMPLEMENTACIÓN DEL PROGRAMA
A7: =+'PRESENTACIÓN INSTITUCIÓN'!C4 -> 2021-05-10 | B7: =+'PRESENTACIÓN INSTITUCIÓN'!C5 -> Juan Galvis | C7: =+'PRESENTACIÓN INSTITUCIÓN'!C6 -> Bacteriologo | D7: =+'PRESENTACIÓN INSTITUCIÓN'!C7 -> IDS | E7: =+'PRESENTACIÓN INSTITUCIÓN'!C9 -> 00:00:00 | F7: =+'PRESENTACIÓN INSTITUCIÓN'!C10 -> 0 | G7: =+'PRESENTACIÓN INSTITUCIÓN'!C11 -> 0 | H7: =+'PRESENTACIÓN INSTITUCIÓN'!C12 -> 0 | I7: =+'PRESENTACIÓN INSTITUCIÓN'!C13 -> 00:00:00 | J7: =+'PRESENTACIÓN INSTITUCIÓN'!C14 -> 0 | K7: =+'PRESENTACIÓN INSTITUCIÓN'!C16 -> 00:00:00 | L7: =+'PRESENTACIÓN INSTITUCIÓN'!C17 -> 00:00:00 | M7: =+'PRESENTACIÓN INSTITUCIÓN'!C18 -> 00:00:00 | N7: =+'PRESENTACIÓN INSTITUCIÓN'!C19 -> 00:00:00 | O7: =+'PRESENTACIÓN INSTITUCIÓN'!C20 -> 00:00:00 | P7: =+'TABLA DE CALIFICACIÓN RESUMIDA'!F10 -> No hay nada | Q7: =+'TABLA DE CALIFICACIÓN RESUMIDA'!F11 -> Documentado | R7: =+'TABLA DE CALIFICACIÓN RESUMIDA'!$F12 -> Documentado | S7: =+'TABLA DE CALIFICACIÓN RESUMIDA'!$F13 -> Implementado | T7: =+'TABLA DE CALIFICACIÓN RESUMIDA'!$F14 -> Mejorado | U7: =+'TABLA DE CALIFICACIÓN RESUMIDA'!$F15 -> Resultado | V7: =+'TABLA DE CALIFICACIÓN RESUMIDA'!$F16 -> Mejorado | W7: =+'TABLA DE CALIFICACIÓN RESUMIDA'!$F17 -> Mejorado | X7: =+'TABLA DE CALIFICACIÓN RESUMIDA'!$F18 -> Resultado | Y7: =+'TABLA DE CALIFICACIÓN RESUMIDA'!$F19 -> Mejorado | Z7: =+'TABLA DE CALIFICACIÓN RESUMIDA'!$F20 -> No hay nada | AA7: =+'TABLA DE CALIFICACIÓN RESUMIDA'!$F21 -> No hay nada | AB7: =+'TABLA DE CALIFICACIÓN RESUMIDA'!$F22 -> No hay nada | AC7: =+'TABLA DE CALIFICACIÓN RESUMIDA'!$F23 -> Mejorado | AD7: =+'TABLA DE CALIFICACIÓN RESUMIDA'!$F24 -> Mejorado | AE7: =+'TABLA DE CALIFICACIÓN RESUMIDA'!$F25 -> No hay nada | AF7: =+'TABLA DE CALIFICACIÓN RESUMIDA'!$F26 -> Documentado | AG7: =+'TABLA DE CALIFICACIÓN RESUMIDA'!$F27 -> Mejorado | AH7: =+'TABLA DE CALIFICACIÓN RESUMIDA'!$F28 -> Resultado | AI7: =+'TABLA DE CALIFICACIÓN RESUMIDA'!$F29 -> No aplica | AJ7: =+'RESULTADOS EN RED'!K18 -> 52.91666667 | AK7: =+'RESULTADOS EN RED'!K20 -> 0.6369047619
P8: =+'TABLA DE CALIFICACIÓN RESUMIDA'!G10 -> 0 | Q8: =+'TABLA DE CALIFICACIÓN RESUMIDA'!G11 -> 0.5 | R8: =+'TABLA DE CALIFICACIÓN RESUMIDA'!$G12 -> 0.25 | S8: =+'TABLA DE CALIFICACIÓN RESUMIDA'!$G13 -> 0.5 | T8: =+'TABLA DE CALIFICACIÓN RESUMIDA'!$G14 -> 1 | U8: =+'TABLA DE CALIFICACIÓN RESUMIDA'!$G15 -> 0.75 | V8: =+'TABLA DE CALIFICACIÓN RESUMIDA'!$G16 -> 1 | W8: =+'TABLA DE CALIFICACIÓN RESUMIDA'!$G17 -> 1 | X8: =+'TABLA DE CALIFICACIÓN RESUMIDA'!$G18 -> 0.75 | Y8: =+'TABLA DE CALIFICACIÓN RESUMIDA'!$G19 -> 1 | Z8: =+'TABLA DE CALIFICACIÓN RESUMIDA'!$G20 -> 0 | AA8: =+'TABLA DE CALIFICACIÓN RESUMIDA'!$G21 -> 0 | AB8: =+'TABLA DE CALIFICACIÓN RESUMIDA'!$G22 -> 0 | AC8: =+'TABLA DE CALIFICACIÓN RESUMIDA'!$G23 -> 1 | AD8: =+'TABLA DE CALIFICACIÓN RESUMIDA'!$G24 -> 1 | AE8: =+'TABLA DE CALIFICACIÓN RESUMIDA'!$G25 -> 0 | AF8: =+'TABLA DE CALIFICACIÓN RESUMIDA'!$G26 -> 1 | AG8: =+'TABLA DE CALIFICACIÓN RESUMIDA'!$G27 -> 1 | AH8: =+'TABLA DE CALIFICACIÓN RESUMIDA'!$G28 -> 0.75 | AI8: =+'TABLA DE CALIFICACIÓN RESUMIDA'!$G29 -> 0
